[Event "January 2 Late 2024"]
[Site "https://www.chess.com"]
[Date "2024.01.02"]
[Round "7"]
[White "Kostiukov, Alexandr"]
[Black "Ljukin, Sergei"]
[Result "0-1"]
[Board "113"]
[TimeControl "180+1"]
[WhiteFideId "14108100"]
[BlackFideId "14102200"]
[WhiteElo "2347"]
[BlackElo "2522"]
[WhiteTeam "UKR"]
[BlackTeam "UKR"]
[WhiteClock "0:00:12"]
[BlackClock "0:00:08"]

1. g3 {[%clk 0:03:00]}  e5 {[%clk 0:02:59]} 2. c4 {[%clk 0:03:00]}  Nf6 {[%clk 0:02:57]} 3. Bg2 {[%clk 0:03:00]}  c6 {[%clk 0:02:58]} 4. a3 {[%clk 0:03:00]}  d5 {[%clk 0:02:58]} 5. cxd5 {[%clk 0:03:01]}  cxd5 {[%clk 0:02:58]} 6. d4 {[%clk 0:03:01]}  e4 {[%clk 0:02:58]} 7. Bg5 {[%clk 0:03:01]}  Nc6 {[%clk 0:02:51]} 8. Nc3 {[%clk 0:03:01]}  Be6 {[%clk 0:02:49]} 9. Nh3 {[%clk 0:03:00]}  Bd6 {[%clk 0:02:45]} 10. O-O {[%clk 0:02:45]}  h6 {[%clk 0:02:41]} 11. Bxf6 {[%clk 0:02:45]}  Qxf6 {[%clk 0:02:41]} 12. e3 {[%clk 0:02:37]}  Qd8 {[%clk 0:02:29]} 13. f3 {[%clk 0:02:02]}  Qd7 {[%clk 0:02:03]} 14. Nf4 {[%clk 0:01:37]}  Bxf4 {[%clk 0:02:02]} 15. gxf4 {[%clk 0:01:36]}  f5 {[%clk 0:01:54]} 16. fxe4 {[%clk 0:01:30]}  fxe4 {[%clk 0:01:53]} 17. Qh5+ {[%clk 0:00:50]}  Bf7 {[%clk 0:01:43]} 18. Qh4 {[%clk 0:00:49]}  O-O {[%clk 0:01:39]} 19. f5 {[%clk 0:00:44]}  Qd8 {[%clk 0:01:18]} 20. f6 {[%clk 0:00:38]}  Be6 {[%clk 0:01:18]} 21. Rf4 {[%clk 0:00:25]}  Rxf6 {[%clk 0:01:13]} 22. Rxf6 {[%clk 0:00:18]}  Qxf6 {[%clk 0:01:13]} 23. Qxf6 {[%clk 0:00:18]}  gxf6 {[%clk 0:01:13]} 24. Nb5 {[%clk 0:00:18]}  Kf7 {[%clk 0:01:04]} 25. Nc7 {[%clk 0:00:18]}  Rg8 {[%clk 0:01:03]} 26. Nxe6 {[%clk 0:00:16]}  Kxe6 {[%clk 0:01:03]} 27. Kf2 {[%clk 0:00:17]}  Rg5 {[%clk 0:00:56]} 28. Bh3+ {[%clk 0:00:17]}  Ke7 {[%clk 0:00:55]} 29. b4 {[%clk 0:00:17]}  Rh5 {[%clk 0:00:47]} 30. Kg3 {[%clk 0:00:16]}  Rg5+ {[%clk 0:00:47]} 31. Kf2 {[%clk 0:00:16]}  a6 {[%clk 0:00:42]} 32. Rc1 {[%clk 0:00:16]}  f5 {[%clk 0:00:40]} 33. Bf1 {[%clk 0:00:12]}  Rh5 {[%clk 0:00:36]} 34. Kg1 {[%clk 0:00:12]}  Kd6 {[%clk 0:00:30]} 35. Rc5 {[%clk 0:00:12]}  f4 {[%clk 0:00:29]} 36. exf4 {[%clk 0:00:09]}  Nxd4 {[%clk 0:00:30]} 37. Rc8 {[%clk 0:00:08]}  Nf3+ {[%clk 0:00:30]} 38. Kf2 {[%clk 0:00:08]}  Rxh2+ {[%clk 0:00:30]} 39. Kg3 {[%clk 0:00:08]}  Ra2 {[%clk 0:00:29]} 40. Rd8+ {[%clk 0:00:08]}  Kc6 {[%clk 0:00:28]} 41. Rc8+ {[%clk 0:00:08]}  Kd7 {[%clk 0:00:28]} 42. Rh8 {[%clk 0:00:08]}  Rxa3 {[%clk 0:00:27]} 43. Rh7+ {[%clk 0:00:09]}  Kc6 {[%clk 0:00:26]} 44. Rxh6+ {[%clk 0:00:10]}  Kc7 {[%clk 0:00:24]} 45. Rh7+ {[%clk 0:00:10]}  Kb6 {[%clk 0:00:25]} 46. Kg4 {[%clk 0:00:10]}  Ra1 {[%clk 0:00:19]} 47. Bg2 {[%clk 0:00:10]}  Rg1 {[%clk 0:00:18]} 48. Kg3 {[%clk 0:00:08]}  Ne1 {[%clk 0:00:18]} 49. Kf2 {[%clk 0:00:08]}  Rxg2+ {[%clk 0:00:17]} 50. Kxe1 {[%clk 0:00:08]}  Rg3 {[%clk 0:00:16]} 51. f5 {[%clk 0:00:08]}  Rf3 {[%clk 0:00:16]} 52. Rh6+ {[%clk 0:00:08]}  Kb5 {[%clk 0:00:16]} 53. f6 {[%clk 0:00:09]}  Kxb4 {[%clk 0:00:15]} 54. Ke2 {[%clk 0:00:10]}  Kc4 {[%clk 0:00:14]} 55. Kd2 {[%clk 0:00:08]}  Kd4 {[%clk 0:00:14]} 56. Ke2 {[%clk 0:00:08]}  b5 {[%clk 0:00:12]} 57. f7 {[%clk 0:00:08]}  Rxf7 {[%clk 0:00:12]} 58. Rxa6 {[%clk 0:00:09]}  Rb7 {[%clk 0:00:11]} 59. Ra2 {[%clk 0:00:09]}  b4 {[%clk 0:00:12]} 60. Rd2+ {[%clk 0:00:09]}  Ke5 {[%clk 0:00:12]} 61. Rd1 {[%clk 0:00:10]}  b3 {[%clk 0:00:12]} 62. Kd2 {[%clk 0:00:09]}  b2 {[%clk 0:00:12]} 63. Rb1 {[%clk 0:00:10]}  Kd4 {[%clk 0:00:12]} 64. Kc2 {[%clk 0:00:10]}  e3 {[%clk 0:00:11]} 65. Rd1+ {[%clk 0:00:11]}  Ke4 {[%clk 0:00:11]} 66. Kb1 {[%clk 0:00:12]}  d4 {[%clk 0:00:12]} 67. Rh1 {[%clk 0:00:12]}  Kd3 {[%clk 0:00:11]} 68. Rh7 {[%clk 0:00:12]}  e2 {[%clk 0:00:11]} 69. Rxb7 {[%clk 0:00:11]}  e1=Q+ {[%clk 0:00:11]} 70. Kxb2 {[%clk 0:00:12]}  Qc3+ {[%clk 0:00:11]} 71. Ka2 {[%clk 0:00:12]}  Qc4+ {[%clk 0:00:11]} 72. Rb3+ {[%clk 0:00:12]}  Ke4 {[%clk 0:00:08]} 73. Ka3 {[%clk 0:00:12]}  d3 {[%clk 0:00:08]} 74. Rb4 {[%clk 0:00:12]}  Qxb4+ {[%clk 0:00:07]} 75. Kxb4 {[%clk 0:00:13]}  d2 {[%clk 0:00:08]} 76. Kc3 {[%clk 0:00:14]}  d1=Q {[%clk 0:00:08]} 77. Kb2 {[%clk 0:00:12]}  Qd4+ {[%clk 0:00:08]} 0-1

[Event "January 2 Late 2024"]
[Site "https://www.chess.com"]
[Date "2024.01.02"]
[Round "7"]
[White "Weisz, Bryan"]
[Black "Wendt, Jan-Dietrich"]
[Result "1-0"]
[Board "114"]
[TimeControl "180+1"]
[WhiteFideId "30934133"]
[BlackFideId "4623797"]
[WhiteElo "2519"]
[BlackElo "2358"]
[WhiteTeam "USA"]
[BlackTeam "GER"]
[WhiteClock "0:00:27"]
[BlackClock "0:00:15"]

1. h4 {[%clk 0:02:54]}  d5 {[%clk 0:02:58]} 2. a4 {[%clk 0:02:53]}  e5 {[%clk 0:02:58]} 3. h5 {[%clk 0:02:51]}  h6 {[%clk 0:02:57]} 4. a5 {[%clk 0:02:52]}  Bd6 {[%clk 0:02:56]} 5. e3 {[%clk 0:02:48]}  f5 {[%clk 0:02:54]} 6. d4 {[%clk 0:02:47]}  e4 {[%clk 0:02:53]} 7. c4 {[%clk 0:02:48]}  c6 {[%clk 0:02:52]} 8. Nc3 {[%clk 0:02:44]}  Ne7 {[%clk 0:02:50]} 9. Qb3 {[%clk 0:02:42]}  Be6 {[%clk 0:02:10]} 10. c5 {[%clk 0:02:15]}  Bc7 {[%clk 0:02:06]} 11. Qxb7 {[%clk 0:02:15]}  Nd7 {[%clk 0:02:04]} 12. Qb4 {[%clk 0:02:05]}  O-O {[%clk 0:02:00]} 13. Nh3 {[%clk 0:01:57]}  Nf6 {[%clk 0:01:48]} 14. Nf4 {[%clk 0:01:54]}  Bf7 {[%clk 0:01:44]} 15. Be2 {[%clk 0:01:40]}  Rb8 {[%clk 0:01:44]} 16. Qa4 {[%clk 0:01:39]}  Qe8 {[%clk 0:01:42]} 17. b4 {[%clk 0:01:30]}  Bxf4 {[%clk 0:01:40]} 18. exf4 {[%clk 0:01:31]}  Bxh5 {[%clk 0:01:38]} 19. Be3 {[%clk 0:01:13]}  Bxe2 {[%clk 0:01:30]} 20. Kxe2 {[%clk 0:01:13]}  a6 {[%clk 0:01:21]} 21. Rab1 {[%clk 0:01:08]}  Ng4 {[%clk 0:01:19]} 22. Qd1 {[%clk 0:01:06]}  Kf7 {[%clk 0:00:52]} 23. Qg1 {[%clk 0:01:01]}  Ke6 {[%clk 0:00:51]} 24. Na4 {[%clk 0:00:53]}  g5 {[%clk 0:00:46]} 25. fxg5 {[%clk 0:00:48]}  f4 {[%clk 0:00:44]} 26. Bd2 {[%clk 0:00:45]}  f3+ {[%clk 0:00:43]} 27. gxf3 {[%clk 0:00:40]}  exf3+ {[%clk 0:00:43]} 28. Kd1 {[%clk 0:00:40]}  h5 {[%clk 0:00:41]} 29. Qe1+ {[%clk 0:00:33]}  Kd7 {[%clk 0:00:32]} 30. Nb6+ {[%clk 0:00:33]}  Kd8 {[%clk 0:00:33]} 31. Qe6 {[%clk 0:00:28]}  Rg8 {[%clk 0:00:15]} 32. Qd6+ {[%clk 0:00:27]} 1-0

[Event "January 2 Late 2024"]
[Site "https://www.chess.com"]
[Date "2024.01.02"]
[Round "7"]
[White "N_Mullodzhanov"]
[Black "Osmonbekov, Talaibek"]
[Result "1-0"]
[Board "116"]
[TimeControl "180+1"]
[BlackFideId "2017253"]
[WhiteElo "2514"]
[BlackElo "2316"]
[BlackTeam "USA"]
[WhiteClock "0:02:46"]
[BlackClock "0:02:18"]

1. e4 {[%clk 0:03:00]}  c5 {[%clk 0:02:59]} 2. c3 {[%clk 0:03:00]}  d5 {[%clk 0:02:59]} 3. exd5 {[%clk 0:02:59]}  Qxd5 {[%clk 0:03:00]} 4. d4 {[%clk 0:02:57]}  Nf6 {[%clk 0:02:58]} 5. Nf3 {[%clk 0:02:57]}  e6 {[%clk 0:02:58]} 6. Na3 {[%clk 0:02:55]}  Be7 {[%clk 0:02:51]} 7. Bc4 {[%clk 0:02:53]}  Qe4+ {[%clk 0:02:45]} 8. Be3 {[%clk 0:02:51]}  cxd4 {[%clk 0:02:43]} 9. Nb5 {[%clk 0:02:51]}  dxe3 {[%clk 0:02:32]} 10. Nc7+ {[%clk 0:02:50]}  Kf8 {[%clk 0:02:32]} 11. Bd3 {[%clk 0:02:47]}  exf2+ {[%clk 0:02:28]} 12. Kf1 {[%clk 0:02:47]}  Bc5 {[%clk 0:02:18]} 13. Bxe4 {[%clk 0:02:46]} 1-0

[Event "January 2 Late 2024"]
[Site "https://www.chess.com"]
[Date "2024.01.02"]
[Round "7"]
[White "Baches Garcia, Guillermo"]
[Black "Lopez Del Alamo, Antonio"]
[Result "1-0"]
[Board "117"]
[TimeControl "180+1"]
[WhiteFideId "2209764"]
[BlackFideId "2227339"]
[WhiteElo "2510"]
[BlackElo "2294"]
[WhiteTeam "ESP"]
[BlackTeam "ESP"]
[WhiteClock "0:00:26"]
[BlackClock "0:00:00"]

1. d4 {[%clk 0:03:00]}  Nf6 {[%clk 0:02:53]} 2. Nf3 {[%clk 0:03:01]}  g6 {[%clk 0:02:51]} 3. Bg5 {[%clk 0:03:01]}  Bg7 {[%clk 0:02:49]} 4. Nbd2 {[%clk 0:03:01]}  d5 {[%clk 0:02:48]} 5. e3 {[%clk 0:03:01]}  O-O {[%clk 0:02:45]} 6. Be2 {[%clk 0:03:01]}  b6 {[%clk 0:02:38]} 7. O-O {[%clk 0:03:01]}  Bb7 {[%clk 0:02:38]} 8. c3 {[%clk 0:02:58]}  c5 {[%clk 0:02:33]} 9. b4 {[%clk 0:02:58]}  c4 {[%clk 0:01:55]} 10. a4 {[%clk 0:02:43]}  a5 {[%clk 0:01:50]} 11. b5 {[%clk 0:02:28]}  Nbd7 {[%clk 0:01:35]} 12. h3 {[%clk 0:02:28]}  Re8 {[%clk 0:01:19]} 13. Bf4 {[%clk 0:02:19]}  Nf8 {[%clk 0:01:11]} 14. Ne5 {[%clk 0:02:14]}  e6 {[%clk 0:01:07]} 15. Bh2 {[%clk 0:01:38]}  Rc8 {[%clk 0:01:03]} 16. f4 {[%clk 0:01:37]}  N6d7 {[%clk 0:00:59]} 17. Qc2 {[%clk 0:01:32]}  f5 {[%clk 0:00:53]} 18. g4 {[%clk 0:01:24]}  Nxe5 {[%clk 0:00:37]} 19. fxe5 {[%clk 0:01:20]}  Bh6 {[%clk 0:00:31]} 20. Rf3 {[%clk 0:01:10]}  Rc7 {[%clk 0:00:20]} 21. Kg2 {[%clk 0:01:04]}  Rg7 {[%clk 0:00:19]} 22. Raf1 {[%clk 0:00:57]}  Bg5 {[%clk 0:00:18]} 23. Bf4 {[%clk 0:00:54]}  Bxf4 {[%clk 0:00:14]} 24. exf4 {[%clk 0:00:55]}  Bc8 {[%clk 0:00:14]} 25. Rh1 {[%clk 0:00:51]}  Kf7 {[%clk 0:00:13]} 26. Kf2 {[%clk 0:00:47]}  Ke7 {[%clk 0:00:13]} 27. Nf1 {[%clk 0:00:46]}  Kd7 {[%clk 0:00:12]} 28. Ne3 {[%clk 0:00:46]}  Kc7 {[%clk 0:00:12]} 29. Qa2 {[%clk 0:00:45]}  Bb7 {[%clk 0:00:12]} 30. g5 {[%clk 0:00:42]}  Qe7 {[%clk 0:00:12]} 31. h4 {[%clk 0:00:41]}  h5 {[%clk 0:00:09]} 32. gxh6 {[%clk 0:00:38]}  Rh7 {[%clk 0:00:08]} 33. Rg3 {[%clk 0:00:36]}  Rxh6 {[%clk 0:00:08]} 34. Ng2 {[%clk 0:00:29]}  Nd7 {[%clk 0:00:07]} 35. Qd2 {[%clk 0:00:27]}  Reh8 {[%clk 0:00:07]} 36. Rg5 {[%clk 0:00:26]}  Nf8 {[%clk 0:00:06]} 37. h5 {[%clk 0:00:25]}  gxh5 {[%clk 0:00:04]} 38. Rhxh5 {[%clk 0:00:25]}  Rxh5 {[%clk 0:00:04]} 39. Rxh5 {[%clk 0:00:26]}  Rxh5 {[%clk 0:00:05]} 40. Bxh5 {[%clk 0:00:26]}  Qh4+ {[%clk 0:00:00]} 41. Nxh4 {[%clk 0:00:26]} 1-0

[Event "January 2 Late 2024"]
[Site "https://www.chess.com"]
[Date "2024.01.02"]
[Round "7"]
[White "Hamidi, Amir Mohammad"]
[Black "Alvarado, Carlos"]
[Result "1-0"]
[Board "121"]
[TimeControl "180+1"]
[WhiteFideId "12563285"]
[BlackFideId "3800555"]
[WhiteElo "2679"]
[BlackElo "2423"]
[WhiteTeam "IRI"]
[BlackTeam "PER"]
[WhiteClock "0:00:04"]
[BlackClock "0:00:04"]

1. Nf3 {[%clk 0:03:00]}  d5 {[%clk 0:02:59]} 2. c4 {[%clk 0:03:01]}  e6 {[%clk 0:02:58]} 3. g3 {[%clk 0:03:01]}  Nf6 {[%clk 0:02:58]} 4. Bg2 {[%clk 0:03:02]}  Be7 {[%clk 0:02:57]} 5. b3 {[%clk 0:03:02]}  O-O {[%clk 0:02:57]} 6. Bb2 {[%clk 0:03:02]}  b6 {[%clk 0:02:55]} 7. O-O {[%clk 0:03:02]}  Bb7 {[%clk 0:02:55]} 8. d4 {[%clk 0:03:02]}  Nbd7 {[%clk 0:02:54]} 9. Nc3 {[%clk 0:03:03]}  dxc4 {[%clk 0:02:52]} 10. bxc4 {[%clk 0:03:03]}  c5 {[%clk 0:02:52]} 11. d5 {[%clk 0:03:02]}  exd5 {[%clk 0:02:52]} 12. Ne1 {[%clk 0:02:59]}  Re8 {[%clk 0:02:46]} 13. cxd5 {[%clk 0:02:53]}  Bf8 {[%clk 0:02:44]} 14. e4 {[%clk 0:02:45]}  a6 {[%clk 0:02:37]} 15. a4 {[%clk 0:02:44]}  c4 {[%clk 0:02:33]} 16. f4 {[%clk 0:02:25]}  Nc5 {[%clk 0:02:07]} 17. e5 {[%clk 0:02:21]}  Nfd7 {[%clk 0:02:04]} 18. d6 {[%clk 0:01:12]}  Bxg2 {[%clk 0:02:01]} 19. Kxg2 {[%clk 0:01:11]}  Rb8 {[%clk 0:01:38]} 20. Nd5 {[%clk 0:01:05]}  b5 {[%clk 0:01:31]} 21. Nc7 {[%clk 0:00:51]}  Nxa4 {[%clk 0:01:27]} 22. Bd4 {[%clk 0:00:37]}  Ndc5 {[%clk 0:01:09]} 23. Nxe8 {[%clk 0:00:35]}  Qxe8 {[%clk 0:01:08]} 24. Qf3 {[%clk 0:00:29]}  Nb3 {[%clk 0:01:05]} 25. Rd1 {[%clk 0:00:23]}  Nxd4 {[%clk 0:00:49]} 26. Rxd4 {[%clk 0:00:24]}  Qd7 {[%clk 0:00:49]} 27. f5 {[%clk 0:00:21]}  c3 {[%clk 0:00:45]} 28. e6 {[%clk 0:00:16]}  fxe6 {[%clk 0:00:45]} 29. fxe6 {[%clk 0:00:17]}  Qxe6 {[%clk 0:00:45]} 30. d7 {[%clk 0:00:17]}  Bd6 {[%clk 0:00:18]} 31. Rxd6 {[%clk 0:00:07]}  Qxd6 {[%clk 0:00:18]} 32. Qf7+ {[%clk 0:00:07]}  Kh8 {[%clk 0:00:18]} 33. Qe8+ {[%clk 0:00:06]}  Qf8 {[%clk 0:00:04]} 34. Rxf8# {[%clk 0:00:04]} 1-0

[Event "January 2 Late 2024"]
[Site "https://www.chess.com"]
[Date "2024.01.02"]
[Round "7"]
[White "Goryachkina, Aleksandra"]
[Black "Rees, Ioan"]
[Result "1/2-1/2"]
[Board "122"]
[TimeControl "180+1"]
[WhiteFideId "4147103"]
[BlackFideId "1801236"]
[WhiteElo "2633"]
[BlackElo "2420"]
[WhiteTeam "FID"]
[BlackTeam "WLS"]
[WhiteClock "0:01:14"]
[BlackClock "0:01:01"]

1. e4 {[%clk 0:03:00]}  e5 {[%clk 0:02:57]} 2. Nf3 {[%clk 0:03:00]}  Nc6 {[%clk 0:02:57]} 3. Bc4 {[%clk 0:03:00]}  Bc5 {[%clk 0:02:56]} 4. d3 {[%clk 0:02:57]}  a6 {[%clk 0:02:55]} 5. c3 {[%clk 0:02:55]}  d6 {[%clk 0:02:46]} 6. Nbd2 {[%clk 0:02:52]}  h6 {[%clk 0:02:41]} 7. h3 {[%clk 0:02:50]}  Qf6 {[%clk 0:02:38]} 8. Nf1 {[%clk 0:02:45]}  Nge7 {[%clk 0:02:37]} 9. Be3 {[%clk 0:02:39]}  Be6 {[%clk 0:02:32]} 10. Bb3 {[%clk 0:02:36]}  O-O-O {[%clk 0:02:24]} 11. Bc2 {[%clk 0:02:31]}  g5 {[%clk 0:02:19]} 12. b4 {[%clk 0:02:27]}  Bxe3 {[%clk 0:02:14]} 13. Nxe3 {[%clk 0:02:26]}  d5 {[%clk 0:02:14]} 14. Qe2 {[%clk 0:02:09]}  d4 {[%clk 0:02:03]} 15. cxd4 {[%clk 0:02:09]}  exd4 {[%clk 0:01:55]} 16. Ng4 {[%clk 0:02:08]}  Bxg4 {[%clk 0:01:55]} 17. hxg4 {[%clk 0:02:08]}  Ng6 {[%clk 0:01:55]} 18. Qd2 {[%clk 0:02:03]}  Nf4 {[%clk 0:01:53]} 19. g3 {[%clk 0:02:03]}  Nxd3+ {[%clk 0:01:48]} 20. Bxd3 {[%clk 0:01:37]}  Qxf3 {[%clk 0:01:46]} 21. O-O {[%clk 0:01:38]}  Qxg4 {[%clk 0:01:30]} 22. b5 {[%clk 0:01:34]}  axb5 {[%clk 0:01:31]} 23. Bxb5 {[%clk 0:01:34]}  Ne5 {[%clk 0:01:30]} 24. Qa5 {[%clk 0:01:13]}  Nf3+ {[%clk 0:01:30]} 25. Kg2 {[%clk 0:01:13]}  Nh4+ {[%clk 0:01:30]} 26. Kh2 {[%clk 0:01:13]}  Nf3+ {[%clk 0:01:28]} 27. Kg2 {[%clk 0:01:14]}  Nh4+ {[%clk 0:01:01]} 28. Kh2 {[%clk 0:01:13]}  Nf3+ {[%clk 0:01:01]} 29. Kg2 {[%clk 0:01:14]} 1/2-1/2

[Event "January 2 Late 2024"]
[Site "https://www.chess.com"]
[Date "2024.01.02"]
[Round "7"]
[White "Vlassov, Nikolai"]
[Black "Senft, Sean"]
[Result "1/2-1/2"]
[Board "123"]
[TimeControl "180+1"]
[WhiteFideId "4103360"]
[BlackFideId "2044960"]
[WhiteElo "2630"]
[BlackElo "2416"]
[WhiteTeam "FID"]
[BlackTeam "USA"]
[WhiteClock "0:01:37"]
[BlackClock "0:02:01"]

1. e4 {[%clk 0:03:00]}  c5 {[%clk 0:03:00]} 2. c3 {[%clk 0:02:58]}  d5 {[%clk 0:03:00]} 3. exd5 {[%clk 0:02:56]}  Qxd5 {[%clk 0:03:00]} 4. d4 {[%clk 0:02:57]}  Nf6 {[%clk 0:03:01]} 5. Nf3 {[%clk 0:02:57]}  Bg4 {[%clk 0:03:01]} 6. dxc5 {[%clk 0:02:56]}  Qxd1+ {[%clk 0:02:59]} 7. Kxd1 {[%clk 0:02:53]}  Nc6 {[%clk 0:02:59]} 8. b4 {[%clk 0:02:48]}  a5 {[%clk 0:02:57]} 9. Bb5 {[%clk 0:02:46]}  axb4 {[%clk 0:02:53]} 10. Bxc6+ {[%clk 0:02:45]}  bxc6 {[%clk 0:02:54]} 11. cxb4 {[%clk 0:02:45]}  O-O-O+ {[%clk 0:02:39]} 12. Kc2 {[%clk 0:02:44]}  Nd5 {[%clk 0:02:32]} 13. a3 {[%clk 0:02:30]}  Bf5+ {[%clk 0:02:30]} 14. Kb3 {[%clk 0:02:26]}  g6 {[%clk 0:02:28]} 15. Bb2 {[%clk 0:02:22]}  Rg8 {[%clk 0:02:28]} 16. Nc3 {[%clk 0:02:20]}  Be6 {[%clk 0:02:23]} 17. Nxd5 {[%clk 0:02:17]}  Bxd5+ {[%clk 0:02:24]} 18. Kc2 {[%clk 0:02:16]}  Bh6 {[%clk 0:02:22]} 19. Rad1 {[%clk 0:02:12]}  f6 {[%clk 0:02:22]} 20. Rhg1 {[%clk 0:01:57]}  Rd7 {[%clk 0:02:20]} 21. Nd4 {[%clk 0:01:47]}  e5 {[%clk 0:02:21]} 22. Ne2 {[%clk 0:01:41]}  Rgd8 {[%clk 0:02:20]} 23. Nc3 {[%clk 0:01:41]}  Be6 {[%clk 0:02:05]} 24. Rxd7 {[%clk 0:01:39]}  Rxd7 {[%clk 0:02:06]} 25. Rd1 {[%clk 0:01:39]}  Bf5+ {[%clk 0:02:06]} 26. Kb3 {[%clk 0:01:39]}  Be6+ {[%clk 0:02:05]} 27. Kc2 {[%clk 0:01:38]}  Bf5+ {[%clk 0:02:04]} 28. Kb3 {[%clk 0:01:38]}  Be6+ {[%clk 0:02:01]} 29. Kc2 {[%clk 0:01:37]} 1/2-1/2

[Event "January 2 Late 2024"]
[Site "https://www.chess.com"]
[Date "2024.01.02"]
[Round "7"]
[White "Teimouri Yadkuri, Shahdad"]
[Black "Hajiyev, Kanan"]
[Result "1-0"]
[Board "125"]
[TimeControl "180+1"]
[WhiteFideId "42515467"]
[BlackFideId "13404148"]
[WhiteElo "2399"]
[BlackElo "2609"]
[WhiteTeam "IRI"]
[BlackTeam "AZE"]
[WhiteClock "0:01:29"]
[BlackClock "0:00:12"]

1. e4 {[%clk 0:03:00]}  c5 {[%clk 0:02:58]} 2. Nf3 {[%clk 0:03:00]}  d6 {[%clk 0:02:59]} 3. d4 {[%clk 0:03:00]}  cxd4 {[%clk 0:03:00]} 4. Nxd4 {[%clk 0:03:00]}  Nf6 {[%clk 0:03:00]} 5. Nc3 {[%clk 0:03:01]}  a6 {[%clk 0:03:01]} 6. Be3 {[%clk 0:02:59]}  e5 {[%clk 0:03:01]} 7. Nb3 {[%clk 0:02:59]}  Be6 {[%clk 0:03:02]} 8. f3 {[%clk 0:02:59]}  Nc6 {[%clk 0:02:58]} 9. Qd2 {[%clk 0:02:58]}  Be7 {[%clk 0:02:49]} 10. O-O-O {[%clk 0:02:57]}  O-O {[%clk 0:02:48]} 11. g4 {[%clk 0:02:57]}  Rc8 {[%clk 0:02:34]} 12. h4 {[%clk 0:02:41]}  Na5 {[%clk 0:02:22]} 13. h5 {[%clk 0:02:36]}  Nxb3+ {[%clk 0:02:11]} 14. cxb3 {[%clk 0:02:33]}  b5 {[%clk 0:02:09]} 15. Kb1 {[%clk 0:02:32]}  b4 {[%clk 0:02:01]} 16. Nd5 {[%clk 0:02:32]}  Bxd5 {[%clk 0:01:46]} 17. exd5 {[%clk 0:02:33]}  Nd7 {[%clk 0:01:35]} 18. g5 {[%clk 0:02:33]}  a5 {[%clk 0:01:33]} 19. g6 {[%clk 0:02:24]}  f5 {[%clk 0:01:26]} 20. h6 {[%clk 0:02:13]}  hxg6 {[%clk 0:01:16]} 21. hxg7 {[%clk 0:02:12]}  Re8 {[%clk 0:00:54]} 22. Bb5 {[%clk 0:02:01]}  Kf7 {[%clk 0:00:50]} 23. Rdg1 {[%clk 0:01:49]}  Rg8 {[%clk 0:00:49]} 24. Bh6 {[%clk 0:01:48]}  Nf6 {[%clk 0:00:43]} 25. Qg2 {[%clk 0:01:47]}  Ng4 {[%clk 0:00:33]} 26. fxg4 {[%clk 0:01:46]}  f4 {[%clk 0:00:33]} 27. g5 {[%clk 0:01:34]}  Qb6 {[%clk 0:00:12]} 28. Bd7 {[%clk 0:01:29]} 1-0

[Event "January 2 Late 2024"]
[Site "https://www.chess.com"]
[Date "2024.01.02"]
[Round "7"]
[White "Esmeraldas Huachi, Anderson"]
[Black "Zavgorodniy, Sergiy"]
[Result "0-1"]
[Board "126"]
[TimeControl "180+1"]
[WhiteFideId "3616363"]
[BlackFideId "14110148"]
[WhiteElo "2398"]
[BlackElo "2592"]
[WhiteTeam "ECU"]
[BlackTeam "UKR"]
[WhiteClock "0:00:06"]
[BlackClock "0:00:32"]

1. d4 {[%clk 0:03:00]}  d5 {[%clk 0:02:59]} 2. c4 {[%clk 0:02:54]}  dxc4 {[%clk 0:02:58]} 3. e4 {[%clk 0:02:48]}  Nf6 {[%clk 0:02:59]} 4. e5 {[%clk 0:02:48]}  Nd5 {[%clk 0:02:59]} 5. Bxc4 {[%clk 0:02:48]}  Nb6 {[%clk 0:02:59]} 6. Bb3 {[%clk 0:02:48]}  Nc6 {[%clk 0:02:59]} 7. Nf3 {[%clk 0:02:48]}  Bf5 {[%clk 0:02:59]} 8. O-O {[%clk 0:02:41]}  e6 {[%clk 0:02:59]} 9. Nc3 {[%clk 0:02:36]}  Nb4 {[%clk 0:02:59]} 10. Bg5 {[%clk 0:02:26]}  Qd7 {[%clk 0:02:54]} 11. a3 {[%clk 0:02:17]}  N4d5 {[%clk 0:02:54]} 12. a4 {[%clk 0:02:17]}  a5 {[%clk 0:02:53]} 13. Nb5 {[%clk 0:00:28]}  h6 {[%clk 0:02:48]} 14. Bh4 {[%clk 0:00:26]}  c6 {[%clk 0:02:48]} 15. Nc3 {[%clk 0:00:25]}  g5 {[%clk 0:02:47]} 16. Bg3 {[%clk 0:00:26]}  Be7 {[%clk 0:02:47]} 17. Rc1 {[%clk 0:00:24]}  h5 {[%clk 0:02:47]} 18. h4 {[%clk 0:00:23]}  g4 {[%clk 0:02:38]} 19. Nd2 {[%clk 0:00:23]}  Rd8 {[%clk 0:02:29]} 20. Nce4 {[%clk 0:00:19]}  Kf8 {[%clk 0:02:27]} 21. Qe2 {[%clk 0:00:16]}  Kg7 {[%clk 0:02:25]} 22. Rfd1 {[%clk 0:00:17]}  Qc7 {[%clk 0:02:24]} 23. Nd6 {[%clk 0:00:17]}  Bg6 {[%clk 0:02:24]} 24. N2e4 {[%clk 0:00:16]}  Nc8 {[%clk 0:02:12]} 25. Bxd5 {[%clk 0:00:15]}  exd5 {[%clk 0:02:10]} 26. Nxc8 {[%clk 0:00:16]}  Qxc8 {[%clk 0:02:10]} 27. Nc5 {[%clk 0:00:13]}  Bxc5 {[%clk 0:02:05]} 28. Rxc5 {[%clk 0:00:13]}  b6 {[%clk 0:02:05]} 29. Rc3 {[%clk 0:00:13]}  Qe6 {[%clk 0:02:05]} 30. Rdc1 {[%clk 0:00:14]}  Rc8 {[%clk 0:02:06]} 31. Rb3 {[%clk 0:00:14]}  Rb8 {[%clk 0:02:05]} 32. Qa6 {[%clk 0:00:14]}  Ra8 {[%clk 0:01:58]} 33. Qxb6 {[%clk 0:00:14]}  Rhb8 {[%clk 0:01:58]} 34. Qxb8 {[%clk 0:00:14]}  Rxb8 {[%clk 0:01:59]} 35. Rxb8 {[%clk 0:00:15]}  Qf5 {[%clk 0:01:00]} 36. b4 {[%clk 0:00:15]}  axb4 {[%clk 0:01:00]} 37. Rxb4 {[%clk 0:00:16]}  Qd3 {[%clk 0:00:59]} 38. Ra1 {[%clk 0:00:14]}  Be4 {[%clk 0:00:55]} 39. a5 {[%clk 0:00:13]}  Qa6 {[%clk 0:00:55]} 40. Rb6 {[%clk 0:00:13]}  Qc4 {[%clk 0:00:54]} 41. Rb2 {[%clk 0:00:08]}  Qxd4 {[%clk 0:00:54]} 42. Rba2 {[%clk 0:00:09]}  Qa7 {[%clk 0:00:47]} 43. a6 {[%clk 0:00:09]}  c5 {[%clk 0:00:47]} 44. Rb2 {[%clk 0:00:10]}  d4 {[%clk 0:00:48]} 45. Re2 {[%clk 0:00:04]}  Bd3 {[%clk 0:00:43]} 46. Ree1 {[%clk 0:00:04]}  c4 {[%clk 0:00:41]} 47. e6 {[%clk 0:00:05]}  fxe6 {[%clk 0:00:41]} 48. Be5+ {[%clk 0:00:05]}  Kg6 {[%clk 0:00:41]} 49. Bxd4 {[%clk 0:00:06]}  Qxd4 {[%clk 0:00:32]} 50. a7 {[%clk 0:00:07]}  g3 {[%clk 0:00:32]} 51. a8=Q {[%clk 0:00:05]}  gxf2+ {[%clk 0:00:32]} 52. Kh1 {[%clk 0:00:06]}  Qxh4# {[%clk 0:00:32]} 0-1